[Event "*** Titled Tuesday Blitz"]
[Site "Chess.com"]
[Date "2020.11.24"]
[Round "3"]
[White "VerdeNotte"]
[Black "suyu28"]
[Result "1/2-1/2"]
[WhiteElo "2901"]
[BlackElo "2609"]
[TimeControl "180+1"]
[EndTime "10:46:46 PST"]
[Termination "Game drawn by repetition"]

1. Nf3 {[%clk 0:03:00.9]} 1... d5 {[%clk 0:02:54.4]} 2. b3 {[%clk 0:03:00.8]}
2... c6 {[%clk 0:02:52]} 3. Bb2 {[%clk 0:03:01]} 3... Nf6 {[%clk 0:02:50.7]} 4.
g3 {[%clk 0:03:00.9]} 4... Bf5 {[%clk 0:02:49.9]} 5. Bg2 {[%clk 0:03:00.9]} 5...
e6 {[%clk 0:02:50.6]} 6. O-O {[%clk 0:03:00.1]} 6... h6 {[%clk 0:02:51.1]} 7. d3
{[%clk 0:02:58.4]} 7... Nbd7 {[%clk 0:02:51.1]} 8. Nbd2 {[%clk 0:02:57.2]} 8...
a5 {[%clk 0:02:50.1]} 9. a4 {[%clk 0:02:49.8]} 9... Bc5 {[%clk 0:02:43.3]} 10.
e4 {[%clk 0:02:49.5]} 10... dxe4 {[%clk 0:02:31.9]} 11. Nxe4 {[%clk 0:02:46.5]}
11... Be7 {[%clk 0:02:30.3]} 12. Ne5 {[%clk 0:02:39.8]} 12... Nxe5 {[%clk
0:02:25.1]} 13. Bxe5 {[%clk 0:02:40.7]} 13... O-O {[%clk 0:02:25]} 14. Nxf6+
{[%clk 0:02:27.6]} 14... Bxf6 {[%clk 0:02:23.9]} 15. Qe2 {[%clk 0:02:28]} 15...
Bxe5 {[%clk 0:02:14.1]} 16. Qxe5 {[%clk 0:02:28.9]} 16... Qb6 {[%clk 0:02:14.7]}
17. h4 {[%clk 0:02:22.2]} 17... Rad8 {[%clk 0:02:14.5]} 18. Rae1 {[%clk
0:02:14.1]} 18... Rd4 {[%clk 0:02:13.8]} 19. Re3 {[%clk 0:02:03.6]} 19... Rfd8
{[%clk 0:02:13.2]} 20. Re2 {[%clk 0:01:44.6]} 20... R8d7 {[%clk 0:02:11.6]} 21.
Kh2 {[%clk 0:01:40.1]} 21... c5 {[%clk 0:01:47.1]} 22. Rfe1 {[%clk 0:01:36.5]}
22... Qd6 {[%clk 0:01:45.4]} 23. Qxd6 {[%clk 0:01:26.9]} 23... R4xd6 {[%clk
0:01:46.3]} 24. Bf3 {[%clk 0:01:20.8]} 24... Rd4 {[%clk 0:01:41.4]} 25. Rg1
{[%clk 0:01:16.4]} 25... Bg4 {[%clk 0:01:33.3]} 26. Bxg4 {[%clk 0:01:15.3]}
26... Rxg4 {[%clk 0:01:34.2]} 27. f4 {[%clk 0:01:14.9]} 27... Rg6 {[%clk
0:01:22.8]} 28. Re5 {[%clk 0:01:12.5]} 28... b6 {[%clk 0:01:23]} 29. Rge1 {[%clk
0:01:07]} 29... Rf6 {[%clk 0:01:23]} 30. Kg2 {[%clk 0:01:06.1]} 30... g6 {[%clk
0:01:22.7]} 31. h5 {[%clk 0:01:05.1]} 31... Kg7 {[%clk 0:01:18.7]} 32. hxg6
{[%clk 0:01:05.1]} 32... Rxg6 {[%clk 0:01:05.1]} 33. Kf3 {[%clk 0:01:03.6]}
33... Rd8 {[%clk 0:00:59]} 34. g4 {[%clk 0:01:00.7]} 34... Rd4 {[%clk
0:00:37.6]} 35. R5e4 {[%clk 0:00:47]} 35... Rd5 {[%clk 0:00:36.2]} 36. Rh1
{[%clk 0:00:43.8]} 36... Rf6 {[%clk 0:00:34.2]} 37. Kg3 {[%clk 0:00:37.1]} 37...
Rg6 {[%clk 0:00:34.3]} 38. Kf3 {[%clk 0:00:31.2]} 38... Rxg4 {[%clk 0:00:22.2]}
39. Kxg4 {[%clk 0:00:29.8]} 39... f5+ {[%clk 0:00:22.6]} 40. Kf3 {[%clk
0:00:25.9]} 40... fxe4+ {[%clk 0:00:23.5]} 41. Kxe4 {[%clk 0:00:24.4]} 41... Rf5
{[%clk 0:00:20.3]} 42. c3 {[%clk 0:00:20.5]} 42... h5 {[%clk 0:00:20.2]} 43. b4
{[%clk 0:00:14]} 43... cxb4 {[%clk 0:00:16.2]} 44. cxb4 {[%clk 0:00:14.9]} 44...
axb4 {[%clk 0:00:14.3]} 45. Rb1 {[%clk 0:00:15]} 45... h4 {[%clk 0:00:07.3]} 46.
Rxb4 {[%clk 0:00:15.2]} 46... Ra5 {[%clk 0:00:07.4]} 47. Kf3 {[%clk 0:00:12]}
47... Kf6 {[%clk 0:00:06.4]} 48. Kg4 {[%clk 0:00:11.7]} 48... Rd5 {[%clk
0:00:05.4]} 49. Kxh4 {[%clk 0:00:06.5]} 49... Rxd3 {[%clk 0:00:05.4]} 50. Kg4
{[%clk 0:00:05.3]} 50... Rd6 {[%clk 0:00:05.5]} 51. Kf3 {[%clk 0:00:05.2]} 51...
Rc6 {[%clk 0:00:05.9]} 52. Ke4 {[%clk 0:00:04.7]} 52... Rd6 {[%clk 0:00:06.4]}
53. Rc4 {[%clk 0:00:03.8]} 53... Rd5 {[%clk 0:00:05.8]} 54. Rc6 {[%clk
0:00:03.9]} 54... Ra5 {[%clk 0:00:05.9]} 55. Rc4 {[%clk 0:00:03.9]} 55... b5
{[%clk 0:00:04.5]} 56. axb5 {[%clk 0:00:04.5]} 56... Rxb5 {[%clk 0:00:05.4]} 57.
Kf3 {[%clk 0:00:04.7]} 57... Ra5 {[%clk 0:00:05.7]} 58. Kg4 {[%clk 0:00:05]}
58... Rb5 {[%clk 0:00:06.1]} 59. Rc8 {[%clk 0:00:05.2]} 59... Ra5 {[%clk
0:00:06.4]} 60. Rf8+ {[%clk 0:00:05.4]} 60... Ke7 {[%clk 0:00:06.8]} 61. Rh8
{[%clk 0:00:06]} 61... Rb5 {[%clk 0:00:07.2]} 62. Rh7+ {[%clk 0:00:05.9]} 62...
Kf6 {[%clk 0:00:07.6]} 63. Rh6+ {[%clk 0:00:06.4]} 63... Kf7 {[%clk 0:00:08.1]}
64. Kf3 {[%clk 0:00:05.7]} 64... Ra5 {[%clk 0:00:08.2]} 65. Kg3 {[%clk 0:00:06]}
65... Rb5 {[%clk 0:00:08.6]} 66. Kg4 {[%clk 0:00:06.6]} 66... Ra5 {[%clk
0:00:09.1]} 67. Rh7+ {[%clk 0:00:05.6]} 67... Kf6 {[%clk 0:00:09]} 68. Rh8
{[%clk 0:00:06]} 68... Rb5 {[%clk 0:00:08.5]} 69. Rf8+ {[%clk 0:00:06.2]} 69...
Kg7 {[%clk 0:00:08.6]} 70. Re8 {[%clk 0:00:06.1]} 70... Kf7 {[%clk 0:00:09]} 71.
Rc8 {[%clk 0:00:06.2]} 71... Kf6 {[%clk 0:00:09.4]} 72. Rg8 {[%clk 0:00:05.4]}
72... Rb4 {[%clk 0:00:09.4]} 73. Rg5 {[%clk 0:00:04.8]} 73... Rc4 {[%clk
0:00:09.1]} 74. Rh5 {[%clk 0:00:05]} 74... Rb4 {[%clk 0:00:09.4]} 75. Rh6+
{[%clk 0:00:05.2]} 75... Kf7 {[%clk 0:00:09.9]} 76. Kg5 {[%clk 0:00:03.3]} 76...
Rb5+ {[%clk 0:00:09.9]} 77. Kg4 {[%clk 0:00:03.9]} 77... Rb4 {[%clk 0:00:10.4]}
78. Kg5 {[%clk 0:00:03]} 78... Rb5+ {[%clk 0:00:10.4]} 79. Kh4 {[%clk
0:00:03.5]} 79... Rb4 {[%clk 0:00:10.8]} 80. Kg3 {[%clk 0:00:04]} 80... Rb3+
{[%clk 0:00:10.8]} 81. Kg4 {[%clk 0:00:04.4]} 81... Rb4 {[%clk 0:00:11.2]}
1/2-1/2

[Event "*** Titled Tuesday Blitz"]
[Site "Chess.com"]
[Date "2020.11.24"]
[Round "3"]
[White "Isajevsky_Anton"]
[Black "Ural_bogatyr"]
[Result "1-0"]
[WhiteElo "2597"]
[BlackElo "2411"]
[TimeControl "180+1"]
[EndTime "10:46:59 PST"]
[Termination "Isajevsky_Anton won by resignation"]

1. c4 {[%clk 0:02:59.3]} 1... Nf6 {[%clk 0:02:59.8]} 2. Nc3 {[%clk 0:02:59]}
2... e6 {[%clk 0:02:56.2]} 3. Nf3 {[%clk 0:02:58.5]} 3... d5 {[%clk 0:02:56.5]}
4. e3 {[%clk 0:02:58.1]} 4... Be7 {[%clk 0:02:56.1]} 5. b3 {[%clk 0:02:57.2]}
5... O-O {[%clk 0:02:56.4]} 6. Qc2 {[%clk 0:02:57.2]} 6... b6 {[%clk 0:02:56.1]}
7. Bb2 {[%clk 0:02:54.7]} 7... Bb7 {[%clk 0:02:56.1]} 8. cxd5 {[%clk 0:02:54.8]}
8... exd5 {[%clk 0:02:55.8]} 9. d4 {[%clk 0:02:52]} 9... c5 {[%clk 0:02:52.8]}
10. Be2 {[%clk 0:02:51.7]} 10... Nc6 {[%clk 0:02:52.4]} 11. Rd1 {[%clk 0:02:51]}
11... Rc8 {[%clk 0:02:41.9]} 12. dxc5 {[%clk 0:02:50.6]} 12... bxc5 {[%clk
0:02:40.6]} 13. O-O {[%clk 0:02:43.7]} 13... Qa5 {[%clk 0:02:28.8]} 14. Qb1
{[%clk 0:02:21.4]} 14... Rfd8 {[%clk 0:02:26]} 15. Na4 {[%clk 0:01:59.3]} 15...
Ne4 {[%clk 0:02:11.5]} 16. Qa1 {[%clk 0:01:50.1]} 16... Bf6 {[%clk 0:02:10.1]}
17. Bxf6 {[%clk 0:01:49.2]} 17... Nxf6 {[%clk 0:02:09.5]} 18. Rc1 {[%clk
0:01:28.9]} 18... Ne4 {[%clk 0:01:57.6]} 19. Rfd1 {[%clk 0:01:28.5]} 19... Qb4
{[%clk 0:01:26]} 20. Nc3 {[%clk 0:01:15.2]} 20... Nxc3 {[%clk 0:01:18.5]} 21.
Qxc3 {[%clk 0:01:16.1]} 21... Qxc3 {[%clk 0:00:56.4]} 22. Rxc3 {[%clk
0:01:15.6]} 22... Na5 {[%clk 0:00:45.3]} 23. h4 {[%clk 0:00:59.4]} 23... c4
{[%clk 0:00:31.5]} 24. b4 {[%clk 0:00:39.9]} 24... Nc6 {[%clk 0:00:23.1]} 25. a3
{[%clk 0:00:40.2]} 25... f6 {[%clk 0:00:20.1]} 26. g3 {[%clk 0:00:35.3]} 26...
Kf8 {[%clk 0:00:19.5]} 27. Nd4 {[%clk 0:00:33.7]} 27... Ke7 {[%clk 0:00:16]} 28.
Nxc6+ {[%clk 0:00:16.7]} 28... Rxc6 {[%clk 0:00:13.5]} 29. Rd4 {[%clk
0:00:17.6]} 29... Rcd6 {[%clk 0:00:12.2]} 30. Bf3 {[%clk 0:00:15.9]} 30... Ke6
{[%clk 0:00:12.4]} 31. Kf1 {[%clk 0:00:15]} 31... g6 {[%clk 0:00:10.3]} 32. Ke2
{[%clk 0:00:15.2]} 32... f5 {[%clk 0:00:10.5]} 33. g4 {[%clk 0:00:15.6]} 33...
Bc6 {[%clk 0:00:09.9]} 34. gxf5+ {[%clk 0:00:15.8]} 34... gxf5 {[%clk
0:00:10.8]} 35. Rc1 {[%clk 0:00:12.4]} 35... Rg8 {[%clk 0:00:09.6]} 36. a4
{[%clk 0:00:09.3]} 36... Bxa4 {[%clk 0:00:04.8]} 37. Ra1 {[%clk 0:00:09.1]}
37... Bb5 {[%clk 0:00:04.3]} 38. Rxa7 {[%clk 0:00:08.9]} 38... c3+ {[%clk
0:00:04.1]} 39. Kd1 {[%clk 0:00:09.4]} 39... Rg1+ {[%clk 0:00:03]} 40. Kc2
{[%clk 0:00:09.8]} 40... Bc4 {[%clk 0:00:02.8]} 41. Kxc3 {[%clk 0:00:07.5]}
41... Rc1+ {[%clk 0:00:02.3]} 42. Kb2 {[%clk 0:00:07]} 42... Rf1 {[%clk
0:00:03.2]} 43. Rd2 {[%clk 0:00:07.2]} 43... Rb6 {[%clk 0:00:03.1]} 44. Ra4
{[%clk 0:00:06.6]} 44... Rg1 {[%clk 0:00:02.2]} 45. Kc3 {[%clk 0:00:06.7]} 45...
Rb1 {[%clk 0:00:02]} 46. Kd4 {[%clk 0:00:06.5]} 46... R1xb4 {[%clk 0:00:02.2]}
47. Rxb4 {[%clk 0:00:06.9]} 47... Rxb4 {[%clk 0:00:03.1]} 48. Kc5 {[%clk
0:00:07.8]} 48... Rb5+ {[%clk 0:00:03.6]} 49. Kc6 {[%clk 0:00:07.8]} 49... Ra5
{[%clk 0:00:04.2]} 50. h5 {[%clk 0:00:07.1]} 50... Ra6+ {[%clk 0:00:04.4]} 51.
Kc5 {[%clk 0:00:07.3]} 51... Ra5+ {[%clk 0:00:04.7]} 52. Kb6 {[%clk 0:00:07.9]}
52... Rb5+ {[%clk 0:00:04.9]} 53. Kc6 {[%clk 0:00:08.5]} 53... Ra5 {[%clk
0:00:05.4]} 54. h6 {[%clk 0:00:09.1]} 54... Ke5 {[%clk 0:00:05.2]} 55. Kc7
{[%clk 0:00:05.4]} 55... Ra6 {[%clk 0:00:05.3]} 56. Bd1 {[%clk 0:00:02.4]} 56...
Rxh6 {[%clk 0:00:05]} 57. Bc2 {[%clk 0:00:03]} 57... Rf6 {[%clk 0:00:04.4]} 58.
f4+ {[%clk 0:00:03.3]} 58... Ke6 {[%clk 0:00:04.4]} 59. Ba4 {[%clk 0:00:03.4]}
59... Kf7 {[%clk 0:00:04.2]} 60. Bd7 {[%clk 0:00:02.6]} 60... Kg6 {[%clk
0:00:03.9]} 61. Rg2+ {[%clk 0:00:02.8]} 61... Kf7 {[%clk 0:00:04.2]} 62. Rg5
{[%clk 0:00:03.4]} 62... h6 {[%clk 0:00:04.1]} 63. Rh5 {[%clk 0:00:03.8]} 63...
Kg6 {[%clk 0:00:03.8]} 64. Rh2 {[%clk 0:00:03.7]} 64... Rf7 {[%clk 0:00:03.9]}
65. Kd6 {[%clk 0:00:03.3]} 65... Rf6+ {[%clk 0:00:03.8]} 66. Ke5 {[%clk
0:00:03.7]} 66... Rf8 {[%clk 0:00:03.8]} 67. Rg2+ {[%clk 0:00:03.3]} 67... Kh7
{[%clk 0:00:03.8]} 68. Bxf5+ {[%clk 0:00:04]} 68... Kh8 {[%clk 0:00:04]} 69. Rg6
{[%clk 0:00:02.5]} 69... Rxf5+ {[%clk 0:00:03.6]} 70. Kxf5 {[%clk 0:00:01.7]}
70... Bd3+ {[%clk 0:00:04.2]} 71. Kf6 {[%clk 0:00:02.4]} 71... Bxg6 {[%clk
0:00:05.1]} 72. Kxg6 {[%clk 0:00:03.3]} 72... Kg8 {[%clk 0:00:05.2]} 73. Kxh6
{[%clk 0:00:03.7]} 73... Kf7 {[%clk 0:00:06.1]} 74. Kg5 {[%clk 0:00:04.2]} 74...
Ke6 {[%clk 0:00:07]} 75. f5+ {[%clk 0:00:04.5]} 75... Kf7 {[%clk 0:00:06.7]} 76.
f6 {[%clk 0:00:04.7]} 76... Kf8 {[%clk 0:00:06.1]} 77. Kg6 {[%clk 0:00:04.9]}
77... Kg8 {[%clk 0:00:06.4]} 78. Kf5 {[%clk 0:00:04.2]} 78... Kf7 {[%clk
0:00:06.5]} 79. Ke5 {[%clk 0:00:04.8]} 79... Kf8 {[%clk 0:00:06.2]} 80. Kxd5
{[%clk 0:00:05.1]} 80... Kf7 {[%clk 0:00:07.1]} 81. Ke5 {[%clk 0:00:06]} 1-0

[Event "*** Titled Tuesday Blitz"]
[Site "Chess.com"]
[Date "2020.11.24"]
[Round "3"]
[White "frederiksvane"]
[Black "dosto07"]
[Result "1-0"]
[WhiteElo "2729"]
[BlackElo "2329"]
[TimeControl "180+1"]
[EndTime "10:47:11 PST"]
[Termination "frederiksvane won on time"]

1. e4 {[%clk 0:03:00.9]} 1... e5 {[%clk 0:02:58.8]} 2. Nf3 {[%clk 0:03:01]} 2...
Nc6 {[%clk 0:02:57.4]} 3. Bb5 {[%clk 0:03:01.2]} 3... a6 {[%clk 0:02:56.6]} 4.
Ba4 {[%clk 0:03:01.5]} 4... Nf6 {[%clk 0:02:56.4]} 5. O-O {[%clk 0:03:00.1]}
5... Be7 {[%clk 0:02:56]} 6. d3 {[%clk 0:02:58.1]} 6... b5 {[%clk 0:02:56.3]} 7.
Bb3 {[%clk 0:02:58.4]} 7... O-O {[%clk 0:02:56.7]} 8. Nc3 {[%clk 0:02:58.1]}
8... d6 {[%clk 0:02:54.9]} 9. a3 {[%clk 0:02:55.6]} 9... Na5 {[%clk 0:02:53.5]}
10. Ba2 {[%clk 0:02:54.7]} 10... Be6 {[%clk 0:02:54.1]} 11. b4 {[%clk
0:02:52.8]} 11... Bxa2 {[%clk 0:02:39.4]} 12. Rxa2 {[%clk 0:02:53.7]} 12... Nc6
{[%clk 0:02:38.3]} 13. Bg5 {[%clk 0:02:50.6]} 13... Nd7 {[%clk 0:02:32.2]} 14.
Bd2 {[%clk 0:02:47.6]} 14... Nf6 {[%clk 0:02:28.5]} 15. Bg5 {[%clk 0:02:47.6]}
15... Nd7 {[%clk 0:02:27.3]} 16. Bd2 {[%clk 0:02:47.6]} 16... Nf6 {[%clk
0:02:26.9]} 17. Qb1 {[%clk 0:02:43.6]} 17... d5 {[%clk 0:02:24.4]} 18. exd5
{[%clk 0:02:37.4]} 18... Nxd5 {[%clk 0:02:23.4]} 19. Qb3 {[%clk 0:02:36.4]}
19... Nxc3 {[%clk 0:02:15.1]} 20. Bxc3 {[%clk 0:02:37.3]} 20... Bf6 {[%clk
0:02:13.8]} 21. Re1 {[%clk 0:02:31.8]} 21... Re8 {[%clk 0:02:09.2]} 22. a4
{[%clk 0:02:20.1]} 22... Nd4 {[%clk 0:02:02]} 23. Bxd4 {[%clk 0:02:15.6]} 23...
exd4 {[%clk 0:02:01.8]} 24. Raa1 {[%clk 0:01:56.3]} 24... c6 {[%clk 0:01:57.5]}
25. Nd2 {[%clk 0:01:30.9]} 25... Qd5 {[%clk 0:01:40.9]} 26. Qxd5 {[%clk
0:01:17.2]} 26... cxd5 {[%clk 0:01:40]} 27. Rxe8+ {[%clk 0:00:39.8]} 27... Rxe8
{[%clk 0:01:38.5]} 28. Kf1 {[%clk 0:00:39.8]} 28... Rc8 {[%clk 0:01:31.1]} 29.
axb5 {[%clk 0:00:36.5]} 29... axb5 {[%clk 0:01:30.7]} 30. Ke2 {[%clk 0:00:30.7]}
30... g6 {[%clk 0:01:23.1]} 31. Kd1 {[%clk 0:00:27.3]} 31... Be7 {[%clk
0:01:22.5]} 32. Ra5 {[%clk 0:00:21.7]} 32... Rb8 {[%clk 0:01:13.4]} 33. Ra7
{[%clk 0:00:18.5]} 33... Bxb4 {[%clk 0:01:12.4]} 34. Rd7 {[%clk 0:00:18.7]}
34... Bc3 {[%clk 0:00:59.7]} 35. Rxd5 {[%clk 0:00:17.8]} 35... b4 {[%clk
0:00:57.1]} 36. Re5 {[%clk 0:00:14.8]} 36... Kf8 {[%clk 0:00:53]} 37. Nb3 {[%clk
0:00:15.1]} 37... Ra8 {[%clk 0:00:50.1]} 38. g4 {[%clk 0:00:12.4]} 38... Ra2
{[%clk 0:00:46.8]} 39. h3 {[%clk 0:00:12]} 39... Rb2 {[%clk 0:00:45.3]} 40. Kc1
{[%clk 0:00:12.5]} 40... Ra2 {[%clk 0:00:43.5]} 41. Re4 {[%clk 0:00:11.9]} 41...
Kg7 {[%clk 0:00:41.7]} 42. f4 {[%clk 0:00:12.1]} 42... h5 {[%clk 0:00:39]} 43.
gxh5 {[%clk 0:00:09.1]} 43... gxh5 {[%clk 0:00:38.3]} 44. Re5 {[%clk 0:00:09.7]}
44... Kg6 {[%clk 0:00:37.5]} 45. Rg5+ {[%clk 0:00:10]} 45... Kh6 {[%clk
0:00:36.9]} 46. Rf5 {[%clk 0:00:10.7]} 46... Kg6 {[%clk 0:00:36]} 47. Rd5 {[%clk
0:00:11.4]} 47... h4 {[%clk 0:00:32.2]} 48. Rg5+ {[%clk 0:00:11]} 48... Kf6
{[%clk 0:00:30.6]} 49. Rg4 {[%clk 0:00:11]} 49... Kf5 {[%clk 0:00:25]} 50. Rxh4
{[%clk 0:00:11.2]} 50... Ra7 {[%clk 0:00:24]} 51. Rg4 {[%clk 0:00:08.3]} 51...
Re7 {[%clk 0:00:22.9]} 52. Rg1 {[%clk 0:00:08.9]} 52... Kxf4 {[%clk 0:00:20.4]}
53. h4 {[%clk 0:00:09.2]} 53... f5 {[%clk 0:00:17.2]} 54. Kd1 {[%clk 0:00:06.3]}
54... Rh7 {[%clk 0:00:17.4]} 55. Rh1 {[%clk 0:00:05.9]} 55... Kg4 {[%clk
0:00:17.1]} 56. Ke2 {[%clk 0:00:06.2]} 56... Rxh4 {[%clk 0:00:16.1]} 57. Rxh4+
{[%clk 0:00:06.6]} 57... Kxh4 {[%clk 0:00:15.5]} 58. Kf3 {[%clk 0:00:07.5]}
58... Kg5 {[%clk 0:00:15.4]} 59. Nc5 {[%clk 0:00:08]} 59... f4 {[%clk
0:00:14.1]} 60. Ne6+ {[%clk 0:00:07.4]} 60... Kf5 {[%clk 0:00:14.3]} 61. Nxf4
{[%clk 0:00:07.9]} 61... Ke5 {[%clk 0:00:14.7]} 62. Ne2 {[%clk 0:00:08.2]} 62...
Kd5 {[%clk 0:00:14.2]} 63. Nc1 {[%clk 0:00:08.6]} 63... Bb2 {[%clk 0:00:13.8]}
64. Nb3 {[%clk 0:00:08.9]} 64... Bc3 {[%clk 0:00:14.7]} 65. Kf4 {[%clk
0:00:09.3]} 65... Bb2 {[%clk 0:00:13.4]} 66. Kf5 {[%clk 0:00:09.9]} 66... Bc3
{[%clk 0:00:13.9]} 67. Kf6 {[%clk 0:00:10.5]} 67... Bb2 {[%clk 0:00:14.3]} 68.
Ke7 {[%clk 0:00:11]} 68... Bc3 {[%clk 0:00:14.9]} 69. Kd7 {[%clk 0:00:11.5]}
69... Be1 {[%clk 0:00:13.7]} 70. Kc7 {[%clk 0:00:11.8]} 70... Bc3 {[%clk
0:00:13.5]} 71. Kb6 {[%clk 0:00:12.2]} 71... Ke5 {[%clk 0:00:13]} 72. Kc5 {[%clk
0:00:12]} 72... Kf4 {[%clk 0:00:13.4]} 73. Nxd4 {[%clk 0:00:09.1]} 73... Ke3
{[%clk 0:00:14.3]} 74. Nc6 {[%clk 0:00:03.9]} 74... Kd2 {[%clk 0:00:15.2]} 75.
Nxb4 {[%clk 0:00:03.8]} 75... Ke3 {[%clk 0:00:07.9]} 76. Kc4 {[%clk 0:00:03.7]}
76... Bd2 {[%clk 0:00:07.8]} 77. Nd5+ {[%clk 0:00:04.1]} 77... Ke2 {[%clk
0:00:07.7]} 78. d4 {[%clk 0:00:05]} 78... Kd1 {[%clk 0:00:08.3]} 79. c3 {[%clk
0:00:05.4]} 79... Kc2 {[%clk 0:00:08.6]} 80. Nb4+ {[%clk 0:00:05.9]} 80... Kb2
{[%clk 0:00:07.7]} 81. Nd3+ {[%clk 0:00:06.3]} 81... Kc2 {[%clk 0:00:07.3]} 82.
Nb4+ {[%clk 0:00:06.8]} 82... Kb2 {[%clk 0:00:08.2]} 83. Nd5 {[%clk 0:00:07.2]}
83... Kc2 {[%clk 0:00:09.1]} 84. Kb4 {[%clk 0:00:06.7]} 84... Be1 {[%clk
0:00:08.5]} 85. Kc5 {[%clk 0:00:07.1]} 85... Kd3 {[%clk 0:00:08.7]} 86. Kb5
{[%clk 0:00:05.1]} 86... Bd2 {[%clk 0:00:09.1]} 87. Kc5 {[%clk 0:00:05.2]} 87...
Ke4 {[%clk 0:00:09.4]} 88. Kc4 {[%clk 0:00:04.7]} 88... Be1 {[%clk 0:00:08.3]}
89. Nb4 {[%clk 0:00:05.2]} 89... Ke3 {[%clk 0:00:08.2]} 90. Nc2+ {[%clk
0:00:05.7]} 90... Kd2 {[%clk 0:00:08.2]} 91. Nxe1 {[%clk 0:00:06.6]} 1-0